bitfinex/quotes_SOLUSD_20250216
["timestamp","ask_amount","ask_price","bid_price","bid_amount"]
[1739745095407,11.29206065,188.09,188.08,0.063]
[1739745096016,12.84526065,188.09,188.08,0.063]
[1739745096606,20.24187022,188.09,188.08,0.063]
[1739745097526,21.47283147,188.07,188.06,0.063]
[1739745097704,31.29234017,188.07,188.06,0.063]
[1739745098218,1.0,188.05,188.04,0.03]
[1739745098420,11.29235606,188.05,188.04,0.03]
[1739745098804,16.61005606,188.05,188.04,0.03]
[1739745099216,1.0,188.02,188.01,0.03]
[1739745099412,10.29492037,188.02,188.01,0.03]
[1739745100831,45.58327597,188.02,188.01,0.03]
[1739745101129,15.61342037,188.02,188.01,0.03]
[1739745102214,15.61342037,188.02,187.98,0.03]
[1739745102215,1.47283147,187.99,187.98,0.03]
[1739745102417,11.29273193,187.99,187.98,0.03]
[1739745106733,16.61213193,187.99,187.98,0.03]
[1739745109132,11.29273193,187.99,187.98,0.03]
[1739745113423,16.61213193,187.99,187.98,0.03]
[1739745116041,11.29273193,187.99,187.98,0.03]
[1739745117441,10.29492037,187.99,187.98,0.03]
[1739745121230,9.8220889,187.99,187.98,0.03]
[1739745123142,10.29492037,187.99,187.98,0.03]
[1739745126334,9.8220889,187.99,187.98,0.03]
[1739745127135,10.29492037,187.99,187.98,0.03]
[1739745127535,9.8220889,187.99,187.98,0.03]
[1739745128447,1.47283147,188.0,187.98,0.03]
[1739745128753,10.29492037,188.01,187.98,0.03]
[1739745129729,0.47283147,188.0,187.98,0.03]
[1739745130751,10.29492037,188.01,187.98,0.03]
[1739745131455,0.47283147,188.0,187.98,0.03]
[1739745131754,1.47283147,188.0,187.98,0.03]
[1739745132254,0.47283147,188.0,187.98,0.03]
[1739745132447,1.47283147,188.0,187.98,0.03]
[1739745132748,5.318,188.04,187.98,0.03]
[1739745132749,1.0,188.01,187.98,0.03]
[1739745133150,9.8220889,188.03,187.99,6.3993]
[1739745133327,0.99736521,188.08,187.99,6.3993]
[1739745133328,9.8220889,188.04,187.99,6.3993]
[1739745133831,1.0,188.03,187.99,6.3993]
[1739745134131,0.063,188.01,187.99,6.3993]
[1739745134331,0.063,188.01,188.0,5.3191]
[1739745138536,0.063,188.01,188.0,27.75303743]
[1739745140543,9.8220889,188.09,188.01,13.41184853]
[1739745140544,1.0,188.08,188.01,13.41184853]
[1739745140739,9.29492037,188.09,188.01,13.41184853]
[1739745140740,10.29492037,188.09,188.02,8.8220889]
[1739745140952,1.47283147,188.09,188.02,8.8220889]
[1739745141355,1.0,188.09,188.02,8.8220889]
[1739745141743,1.47283147,188.09,188.02,8.8220889]
[1739745141944,1.0,188.09,188.03,13.41184853]
[1739745142557,1.0,188.09,188.05,13.41184853]
[1739745142858,1.0,188.09,188.05,13.61184853]
[1739745143557,1.47283147,188.09,188.05,13.61184853]
[1739745143855,1.47283147,188.09,188.06,5.3174]
[1739745145556,1.50283147,188.09,188.06,5.3174]
[1739745147556,0.50283147,188.09,188.06,5.3174]
[1739745147740,1.50283147,188.09,188.06,5.3174]
[1739745147942,1.0,188.08,188.06,5.3174]
[1739745148554,1.50283147,188.09,188.06,5.3174]
[1739745148958,1.0,188.08,188.06,5.3174]
[1739745153065,1.0,188.07,188.05,0.2]
[1739745153242,1.0,188.07,188.05,5.5177]
[1739745155965,9.8220889,188.06,188.05,0.2]
[1739745156149,10.29492037,188.06,188.05,0.2]
[1739745156948,10.29492037,188.06,188.01,18.73044853]
[1739745157148,1.0,188.03,188.01,18.93044853]
[1739745157349,1.0,188.03,188.0,5.3821]
[1739745157762,1.0,188.02,188.0,5.3821]
[1739745157974,1.0,188.02,188.0,5.5821]
[1739745158174,1.0,188.02,188.0,0.263]
[1739745158467,9.29492037,188.04,188.0,0.263]
[1739745158468,10.29492037,188.01,188.0,0.263]
[1739745159085,10.29492037,188.01,188.0,0.063]
[1739745159779,9.8220889,188.01,188.0,0.063]
[1739745159953,10.29492037,188.01,188.0,0.063]
[1739745160355,9.8220889,188.01,188.0,0.063]
[1739745160670,10.29492037,188.01,188.0,0.063]
[1739745162270,9.8220889,188.01,188.0,0.063]
[1739745162781,1.47283147,188.01,188.0,0.063]
[1739745163379,2.47016165,188.01,188.0,0.063]
[1739745163677,11.29225055,188.01,188.0,0.063]
[1739745165769,16.61105055,188.01,188.0,0.063]
[1739745165974,51.89940615,188.01,188.0,0.063]
[1739745167774,21.0,187.99,187.98,0.03]
[1739745167953,30.81983862,187.99,187.98,0.03]
[1739745169880,36.13923862,187.99,187.98,0.03]
[1739745170178,36.61207009,187.99,187.98,0.03]
[1739745172986,16.61207009,187.99,187.98,0.03]
[1739745173591,36.61207009,187.99,187.98,0.03]
[1739745176268,38.23077009,187.99,187.98,0.03]
[1739745176691,9.29492037,187.96,187.95,0.03]
[1739745176872,10.2928318,187.96,187.95,0.03]
[1739745177789,16.6130318,187.96,187.95,0.03]
[1739745180481,21.47283147,187.94,187.93,0.03]
[1739745180687,66.58138315,187.94,187.93,0.03]
[1739745181487,71.90218315,187.94,187.93,0.03]
[1739745181870,36.61382755,187.94,187.93,0.03]
[1739745183270,71.90218315,187.94,187.89,0.03]
[1739745183468,10.29492037,187.9,187.89,0.03]
[1739745183681,11.2931047,187.9,187.89,0.03]
[1739745185287,16.6150047,187.9,187.89,0.03]
[1739745186994,1.47283147,187.83,187.82,0.063]
[1739745187168,10.29492037,187.83,187.82,0.063]
[1739745192590,1.47283147,187.83,187.82,0.063]
[1739745192891,1.0,187.83,187.82,0.063]
[1739745193498,1.47283147,187.84,187.82,0.063]
[1739745194383,1.0,187.83,187.82,0.063]
[1739745194596,1.0,187.84,187.82,0.063]
[1739745194994,1.0,187.84,187.82,5.3872]
[1739745196577,1.0,187.84,187.82,4.8872]
[1739745197097,1.47283147,187.84,187.82,4.8872]
[1739745198706,1.0,187.83,187.82,4.8872]
[1739745200602,1.47283147,187.84,187.82,4.8872]
[1739745200798,1.0,187.83,187.82,4.8872]
[1739745201799,1.0,187.84,187.82,4.8872]
[1739745202003,1.0,187.85,187.82,4.8872]
[1739745202193,1.0,187.86,187.82,4.8872]
[1739745203906,1.0,187.86,187.83,13.41184853]
[1739745204208,1.0,187.87,187.83,13.41184853]
[1739745204708,1.0,187.86,187.83,13.41184853]
[1739745205098,1.0,187.86,187.84,5.3236]
[1739745205699,1.0,187.87,187.84,5.3236]
[1739745205999,1.0,187.86,187.84,5.3236]
[1739745206203,1.47283147,187.87,187.84,5.3236]
[1739745206399,0.063,187.86,187.84,5.3236]
[1739745207789,1.063,187.86,187.84,5.3236]
[1739745208486,0.063,187.86,187.84,5.3236]
[1739745208686,1.063,187.86,187.84,5.3236]
[1739745212720,0.063,187.86,187.84,5.3236]
[1739745214417,0.063,187.86,187.85,13.41184853]
[1739745216615,0.063,187.86,187.85,18.73514853]
[1739745218699,1.063,187.86,187.85,18.73514853]
[1739745219118,0.063,187.86,187.85,18.73514853]
[1739745221607,1.063,187.86,187.85,18.73514853]
[1739745224211,1.53583147,187.86,187.84,5.3236]
[1739745226009,1.53583147,187.86,187.82,13.64184853]
[1739745226206,1.53583147,187.86,187.83,5.3239]
[1739745227410,1.53583147,187.86,187.82,0.03]
[1739745227411,1.0,187.83,187.82,0.03]
[1739745227605,1.47283147,187.83,187.82,0.03]
[1739745227825,1.47283147,187.84,187.82,0.03]
[1739745228006,1.47283147,187.83,187.82,0.03]
[1739745233438,10.29492037,187.83,187.82,0.03]
[1739745237229,11.2932805,187.83,187.82,0.03]
[1739745237626,16.6171805,187.83,187.82,0.03]
[1739745237945,51.9055361,187.83,187.82,0.03]
[1739745238622,51.9055361,187.83,187.81,0.063]
[1739745238842,9.8220889,187.82,187.81,0.063]
[1739745239440,10.29492037,187.82,187.81,0.063]
[1739745239743,1.47283147,187.75,187.74,0.03]
[1739745239926,10.29492037,187.75,187.74,0.03]
[1739745240845,11.29375593,187.75,187.74,0.03]
[1739745241736,10.29492037,187.75,187.74,0.03]
[1739745243747,11.29375426,187.75,187.74,0.03]
[1739745245326,16.61995426,187.75,187.74,0.03]
[1739745254138,51.90830986,187.75,187.74,0.03]
[1739745255180,0.47283147,187.68,187.64,11.4524]
[1739745255378,1.0,187.65,187.64,11.4524]
[1739745255540,1.0,187.65,187.64,6.1231]
[1739745255956,1.0,187.64,187.63,0.03]
[1739745256141,1.47283147,187.64,187.63,0.03]
[1739745257065,10.29492037,187.64,187.63,0.03]
[1739745265200,11.29428698,187.64,187.63,0.03]
[1739745265393,10.29492037,187.64,187.63,0.03]
[1739745266376,11.29430577,187.64,187.63,0.03]
[1739745266693,16.62360577,187.64,187.63,0.03]
[1739745278677,17.62360577,187.64,187.63,0.03]
[1739745282315,16.21745117,187.64,187.63,0.03]
[1739745285118,15.21745117,187.64,187.63,0.03]
[1739745286719,5.3299,187.62,187.55,0.03]
[1739745286890,8.8220889,187.56,187.55,0.03]
[1739745287988,8.8220889,187.57,187.55,0.03]
[1739745288791,8.8220889,187.58,187.55,0.03]
[1739745292505,8.8220889,187.57,187.55,0.03]
[1739745293213,8.8220889,187.56,187.55,0.03]
[1739745293709,8.8220889,187.57,187.55,0.03]
[1739745293904,0.06667687,187.56,187.55,0.03]
[1739745303814,0.06667687,187.58,187.55,0.03]
[1739745303994,0.06667687,187.57,187.55,0.03]
[1739745313314,0.06667687,187.56,187.55,0.03]
[1739745315605,0.06667687,187.56,187.51,27.56683743]
[1739745316427,0.06667687,187.56,187.51,18.74474853]
[1739745317326,0.06667687,187.56,187.51,27.56683743]
[1739745317728,8.88876577,187.56,187.51,18.74474853]
[1739745317918,0.06667687,187.56,187.51,18.74474853]
[1739745319438,8.88876577,187.56,187.51,18.74474853]
[1739745319635,8.8220889,187.54,187.51,18.74484853]
[1739745319926,8.8220889,187.55,187.51,18.74484853]
[1739745321821,8.88876577,187.56,187.51,18.74484853]
[1739745322025,0.06667687,187.5,187.42,35.5555997]
[1739745322222,8.8220889,187.49,187.43,8.40982244]
[1739745322428,0.06667687,187.52,187.45,6.5051]
[1739745322621,0.06667687,187.51,187.45,6.5051]
[1739745322823,0.06667687,187.53,187.46,13.41184853]
[1739745323034,0.06667687,187.54,187.48,8.8220889]
[1739745323201,0.06667687,187.54,187.49,13.41184853]
[1739745323407,8.88876577,187.54,187.48,13.41184853]
[1739745323926,0.06667687,187.53,187.48,13.41184853]
[1739745324121,8.88876577,187.55,187.49,13.41184853]
[1739745324330,0.06667687,187.54,187.49,13.41184853]
[1739745325305,0.06667687,187.54,187.49,5.3333]
[1739745325507,0.06667687,187.52,187.47,5.3341]
[1739745325728,0.06667687,187.51,187.46,5.3344]
[1739745325925,0.06667687,187.51,187.46,18.74624853]
[1739745326133,0.06667687,187.51,187.47,13.41184853]
[1739745326425,0.06667687,187.5,187.45,6.5051]
[1739745326931,0.06667687,187.5,187.46,13.41184853]
[1739745327828,0.06667687,187.5,187.46,18.74624853]
[1739745328203,8.88876577,187.5,187.46,13.41184853]
[1739745328618,0.06667687,187.5,187.46,13.41184853]
[1739745329215,0.06667687,187.5,187.46,22.23393743]
[1739745329414,0.06667687,187.5,187.46,13.41184853]
[1739745329614,0.06667687,187.5,187.46,27.56833743]
[1739745330032,0.06667687,187.5,187.46,18.74624853]
[1739745330328,0.06667687,187.5,187.46,27.56833743]
[1739745330909,0.06667687,187.5,187.46,22.23393743]
[1739745332132,0.06667687,187.5,187.46,13.41184853]
[1739745333542,0.06667687,187.5,187.46,22.23393743]
[1739745333942,0.06667687,187.5,187.46,13.41184853]
[1739745334107,0.06667687,187.5,187.46,22.23393743]
[1739745336526,8.88876577,187.5,187.45,13.41184853]
[1739745336922,8.8220889,187.49,187.44,13.41184853]
[1739745337124,8.88876577,187.5,187.44,22.23393743]
[1739745337324,8.88876577,187.5,187.44,13.41184853]
[1739745337325,8.8220889,187.49,187.44,13.41184853]
[1739745337522,8.88876577,187.48,187.42,14.1575889]
[1739745337729,0.06667687,187.47,187.42,14.1575889]
[1739745337922,0.06667687,187.47,187.43,8.8220889]
[1739745338119,0.06667687,187.48,187.44,13.41184853]
[1739745338419,0.06667687,187.48,187.45,8.8220889]
[1739745338939,0.06667687,187.48,187.46,13.41184853]
[1739745342511,0.06667687,187.52,187.48,13.41184853]
[1739745342717,0.06667687,187.55,187.5,8.8220889]
[1739745343132,10.51216577,187.57,187.52,13.41184853]
[1739745343435,0.06667687,187.59,187.54,13.41184853]
[1739745343640,0.06667687,187.6,187.56,13.41184853]
[1739745343938,0.06667687,187.62,187.56,22.23393743]
[1739745344139,0.12967687,187.63,187.58,13.41184853]
[1739745344318,0.12967687,187.63,187.6,13.41184853]
[1739745344319,0.063,187.63,187.6,13.41184853]
[1739745344642,0.063,187.63,187.62,22.23393743]
[1739745345230,0.063,187.63,187.62,30.84336056]
[1739745345429,0.063,187.64,187.63,15.34517166]
[1739745346019,0.0001,187.64,187.63,59.65561616]
[1739745346218,0.0001,187.64,187.63,61.30681616]
[1739745346744,0.0001,187.64,187.63,66.63641616]
[1739745347238,8.06192418,187.73,187.67,20.93332313]
[1739745347419,0.063,187.74,187.72,22.23393743]
[1739745347625,0.063,187.74,187.73,22.23393743]
[1739745348225,0.063,187.74,187.73,28.71003743]
[1739745348833,0.063,187.74,187.73,34.03673743]
[1739745349145,0.063,187.74,187.73,34.23673743]
[1739745349444,0.063,187.74,187.73,70.45841616]
[1739745349650,0.063,187.81,187.77,13.41184853]
[1739745349823,0.063,187.81,187.8,8.8220889]
[1739745350153,0.063,187.81,187.8,22.23393743]
[1739745352562,0.063,187.83,187.8,22.23393743]
[1739745352563,0.063,187.83,187.82,20.0]
[1739745352723,0.063,187.86,187.85,20.0]
[1739745352921,0.063,187.86,187.85,42.23393743]
[1739745353145,0.063,187.86,187.85,42.43393743]
[1739745353731,0.063,187.93,187.89,20.0]
[1739745353931,0.063,187.93,187.92,22.23393743]
[1739745354749,0.063,187.93,187.92,27.1760807]
[1739745355838,0.063,187.93,187.92,32.4974807]
[1739745357649,0.0001,187.93,187.92,47.46171287]
[1739745357874,0.12967687,188.0,187.95,20.0]
[1739745358151,0.12967687,188.0,187.99,27.1760807]
[1739745358522,0.063,188.0,187.99,27.1760807]
[1739745359145,0.063,188.0,187.99,27.3760807]
[1739745359349,0.063,188.0,187.99,32.6954807]
[1739745359858,0.063,188.0,187.99,46.45971287]
[1739745360028,0.063,188.01,188.0,13.41184853]
[1739745360227,0.063,188.01,188.0,40.94031287]
[1739745360731,0.063,188.01,188.0,27.1760807]
[1739745361254,0.063,188.01,188.0,40.94031287]
[1739745361550,0.063,188.01,188.0,46.25941287]
[1739745362346,0.0001,188.01,188.0,46.25941287]
[1739745362544,0.0001,188.01,188.0,47.25941287]
[1739745362940,0.063,188.05,188.04,13.41184853]
[1739745363135,0.063,188.05,188.04,27.1760807]
[1739745363635,0.063,188.05,188.04,13.41184853]
[1739745364175,0.12967687,188.05,188.04,13.41184853]
[1739745365656,0.12967687,188.05,188.04,18.72984853]
[1739745365956,0.063,188.05,188.04,32.4940807]
[1739745366160,0.063,188.05,188.04,32.6940807]
[1739745366849,0.0001,188.05,188.04,32.6940807]
[1739745367037,0.0001,188.08,188.07,33.41184853]
[1739745367239,0.063,188.2,188.16,20.0]
[1739745367439,0.063,188.2,188.16,47.3760807]
[1739745367742,0.063,188.2,188.19,20.0]
[1739745368054,0.03,188.27,188.23,20.0]
[1739745368246,0.03,188.27,188.26,27.1760807]
[1739745368447,0.09667687,188.27,188.26,13.41184853]
[1739745369239,0.09667687,188.27,188.26,27.1760807]
[1739745369452,0.09667687,188.27,188.19,13.96423217]
[1739745369453,0.06667687,188.25,188.24,13.76423217]
[1739745369657,0.06667687,188.22,188.21,13.76423217]
[1739745369958,0.06667687,188.2,188.19,13.76423217]
[1739745370160,0.06667687,188.22,188.2,13.41184853]
[1739745370344,0.06667687,188.21,188.2,27.1760807]
[1739745370741,0.06667687,188.23,188.2,27.1760807]
[1739745370935,0.09667687,188.27,188.23,13.41184853]
[1739745371135,0.09667687,188.27,188.25,13.41184853]
[1739745371336,0.06667687,188.26,188.25,13.41184853]
[1739745371535,0.06667687,188.26,188.24,13.41184853]
[1739745372155,0.06667687,188.24,188.22,13.76423217]
[1739745372353,0.06667687,188.22,188.21,0.2]
[1739745372536,0.06667687,188.22,188.17,13.76423217]
[1739745372736,0.06667687,188.22,188.19,13.41184853]
[1739745372936,0.06667687,188.17,188.16,13.76423217]
[1739745373158,0.06667687,188.17,188.15,13.76423217]
[1739745373369,0.06667687,188.17,188.15,13.41184853]
[1739745373661,14.76057828,188.22,188.13,0.2]
[1739745373662,0.06667687,188.14,188.13,0.2]
[1739745373840,0.99634611,188.22,188.11,98.06423217]
[1739745373841,0.06667687,188.13,188.11,98.06423217]
[1739745374040,0.06667687,188.13,188.12,27.1760807]
[1739745374342,0.06667687,188.13,188.12,13.76423217]
[1739745374555,0.06667687,188.13,188.11,98.06423217]
[1739745374755,0.06667687,188.13,188.11,84.3]
[1739745374934,0.06667687,188.12,188.1,21.97833245]
[1739745375337,0.06667687,188.12,188.11,13.41184853]
[1739745375755,0.06667687,188.12,188.09,13.41184853]
[1739745376561,0.06667687,188.12,188.1,13.41184853]
[1739745376864,0.06667687,188.11,188.1,13.41184853]
[1739745377868,0.06667687,188.11,188.08,13.41184853]
[1739745378374,0.06667687,188.11,188.08,35.39018098]
[1739745378550,0.06667687,188.11,188.1,13.41184853]
[1739745378862,0.06667687,188.11,188.09,13.41184853]
[1739745379460,0.06667687,188.1,188.09,13.41184853]
[1739745379839,0.06667687,188.1,188.08,13.41184853]
[1739745385057,0.06667687,188.09,188.05,21.97833245]
[1739745385262,0.06667687,188.08,188.05,22.17833245]
[1739745385459,0.06667687,188.08,188.07,13.41184853]
[1739745386264,0.06667687,188.05,188.03,0.2]
[1739745386457,0.06667687,188.05,188.03,21.97833245]
[1739745386767,0.06667687,188.05,188.04,13.41184853]
[1739745388375,0.06667687,188.05,188.02,21.97833245]
[1739745388571,0.06667687,188.01,188.0,0.063]
[1739745396073,22.04500932,188.01,188.0,0.063]
[1739745396663,13.8295179,188.01,188.0,0.063]
[1739745397174,19.1483179,188.01,188.0,0.063]
[1739745406457,21.67923979,188.01,188.0,0.063]
[1739745406662,37.44208082,188.01,188.0,0.063]
[1739745407656,22.67923979,188.01,188.0,0.063]
[1739745407861,37.44208082,188.01,188.0,0.0001]
[1739745408064,0.06667687,187.87,187.84,98.06284103]
[1739745408371,0.06667687,187.85,187.84,98.06284103]
[1739745408568,0.06667687,187.86,187.85,13.41184853]
[1739745408773,0.06667687,187.86,187.85,27.17468956]
[1739745409179,0.06667687,187.86,187.85,18.73514853]
[1739745411481,0.06667687,187.86,187.85,18.79814853]
[1739745412966,0.06667687,187.89,187.85,32.56098956]
[1739745413173,0.06667687,187.93,187.89,13.41184853]
[1739745413469,0.06667687,187.93,187.91,13.41184853]
[1739745413670,0.06667687,187.92,187.91,13.41184853]
[1739745413987,0.06667687,187.92,187.89,13.41184853]
[1739745414383,0.06667687,187.91,187.89,13.41184853]
[1739745414686,0.06667687,187.91,187.9,18.73374853]
[1739745418493,0.06667687,187.91,187.9,5.3219]
[1739745419191,0.06667687,187.91,187.89,13.41184853]
[1739745419379,0.06667687,187.91,187.89,18.73404853]
[1739745419996,0.06667687,187.89,187.88,13.76284103]
[1739745420187,0.06667687,187.89,187.88,19.08514103]
[1739745420488,0.06667687,187.89,187.88,32.49698956]
[1739745423292,0.06667687,187.89,187.88,32.55998956]
[1739745428597,0.06667687,187.89,187.88,27.61047658]
[1739745430510,0.06667687,187.9,187.88,27.61047658]
[1739745432094,0.06667687,187.89,187.88,18.79714853]
[1739745433804,0.06667687,187.89,187.88,27.61047658]
[1739745434205,0.06667687,187.89,187.88,18.79714853]
[1739745435608,0.06667687,187.89,187.88,27.61047658]
[1739745444301,0.06667687,187.89,187.88,18.79714853]
[1739745444513,0.06667687,187.89,187.88,27.61047658]
[1739745445409,0.06667687,187.89,187.88,22.28817658]
[1739745446208,0.06667687,187.89,187.88,0.063]
[1739745447295,8.88000492,187.89,187.88,0.063]
[1739745447691,0.06667687,187.89,187.88,0.063]
[1739745449895,0.06667687,187.9,187.88,8.87632805]
[1739745450095,0.06667687,187.9,187.89,8.81332805]
[1739745450698,0.06667687,187.91,187.89,8.81332805]
[1739745450922,0.06667687,187.9,187.89,8.81332805]
[1739745452830,0.06667687,187.91,187.89,27.54737658]
[1739745453123,0.06667687,187.94,187.9,22.22517658]
[1739745453301,0.06667687,187.94,187.91,8.81332805]
[1739745453501,0.06667687,187.94,187.91,14.13472805]
[1739745453920,0.06667687,187.95,187.91,14.13472805]
[1739745454111,0.06667687,187.94,187.91,5.3214]
[1739745454304,0.06667687,187.94,187.91,14.13472805]
[1739745454501,0.06667687,187.95,187.92,22.22517658]
[1739745455815,0.03,188.0,187.95,13.41184853]
[1739745456015,0.03,188.0,187.99,8.81332805]
[1739745456404,0.03,188.0,187.99,9.01332805]
[1739745456918,0.0001,188.0,187.99,105.85849971]
[1739745457128,0.0001,188.01,188.0,14.34517166]
[1739745457314,0.06667687,188.1,188.05,20.0]
[1739745457513,0.06667687,188.11,188.08,22.22517658]
[1739745457714,0.06667687,188.12,188.09,14.12992805]
[1739745458226,0.06667687,188.11,188.09,14.12992805]
[1739745458414,0.06667687,188.12,188.09,14.12992805]
[1739745458728,0.06667687,188.11,188.09,19.05526985]
[1739745459404,0.06667687,188.11,188.1,13.73866985]
[1739745459605,0.06667687,188.11,188.09,13.73866985]
[1739745459922,0.06667687,188.11,188.1,13.73866985]
[1739745460114,0.06667687,188.12,188.1,13.73866985]
[1739745460297,0.06667687,188.11,188.1,13.73866985]
[1739745460503,0.06667687,188.12,188.1,13.73866985]
[1739745460729,0.06667687,188.12,188.09,19.05526985]
[1739745461116,0.06667687,188.14,188.11,13.73866985]
[1739745461307,0.06667687,188.14,188.1,18.72804853]
[1739745461308,0.06667687,188.14,188.12,13.73866985]
[1739745462511,0.06667687,188.15,188.12,13.73866985]
[1739745463026,0.06667687,188.16,188.13,13.73866985]
[1739745463628,0.06667687,188.16,188.13,19.05406985]
[1739745464333,0.06667687,188.15,188.13,19.05406985]
[1739745464534,0.06667687,188.15,188.13,13.73866985]
[1739745465618,0.06667687,188.15,188.13,19.05406985]
[1739745465820,0.06667687,188.14,188.13,19.05406985]
[1739745466021,0.06667687,188.15,188.13,19.05406985]
[1739745466430,0.06667687,188.15,188.14,13.73866985]
[1739745466828,0.06667687,188.15,188.13,17.64553956]
[1739745467224,0.06667687,188.13,188.12,25.74198809]
[1739745467514,0.06667687,188.13,188.12,13.41184853]
[1739745467733,0.06667687,188.13,188.12,18.72754853]
[1739745468114,0.06667687,188.11,188.1,12.53013956]
[1739745470220,0.06667687,188.01,187.99,12.33013956]
[1739745470427,0.06667687,188.0,187.98,12.33013956]
[1739745470623,0.06667687,187.99,187.98,25.94198809]
[1739745471020,0.06667687,187.97,187.96,12.33013956]
[1739745471441,0.06667687,187.96,187.95,45.14387171]
[1739745471646,0.06667687,187.96,187.93,96.59013956]
[1739745472310,0.06667687,187.94,187.93,96.59013956]
[1739745472512,0.06667687,187.94,187.92,13.61184853]
[1739745472716,0.06667687,187.94,187.92,13.41184853]
[1739745472938,0.06667687,187.92,187.91,12.53013956]
[1739745473121,0.06667687,187.92,187.9,12.33013956]
[1739745473316,0.06667687,187.92,187.91,12.33013956]
[1739745473917,0.06667687,187.96,187.92,13.41184853]
[1739745474120,0.06667687,187.96,187.93,12.33013956]
[1739745474519,0.06667687,187.98,187.95,12.33013956]
[1739745475643,0.06667687,187.98,187.96,13.41184853]
[1739745475824,0.06667687,187.97,187.94,13.61184853]
[1739745476024,0.06667687,187.97,187.94,18.93234853]
[1739745476823,0.06667687,187.95,187.94,18.93234853]
[1739745477223,12.33013956,188.0,187.94,18.93234853]
[1739745477224,0.06667687,187.96,187.94,18.93234853]
[1739745477426,0.06667687,187.97,187.94,18.93234853]
[1739745478042,0.06667687,187.98,187.94,18.93234853]
[1739745478341,0.06667687,187.98,187.94,31.26248809]
[1739745479023,0.06667687,188.0,187.96,12.33013956]
[1739745479226,0.06667687,188.02,187.98,25.74198809]
[1739745479425,0.06667687,188.02,187.98,25.94198809]
[1739745480242,0.06667687,188.02,187.99,5.3194]
[1739745480641,0.06667687,188.03,187.99,5.3194]
[1739745480841,0.06667687,188.03,187.99,17.64953956]
[1739745481027,0.06667687,188.03,188.0,25.74198809]
[1739745481226,0.06667687,188.03,188.0,13.41184853]
[1739745481641,0.06667687,188.01,188.0,0.2]
[1739745481930,0.06667687,188.01,188.0,0.263]
[1739745482745,0.06667687,188.01,188.0,0.063]
[1739745485250,13.39416525,188.01,188.0,0.063]
[1739745486248,14.91446525,188.01,188.0,0.063]
[1739745486450,21.23326525,188.01,188.0,0.063]
[1739745486655,0.06667687,187.9,187.89,0.063]
[1739745487765,12.39681643,187.9,187.89,0.063]
[1739745488636,17.71871643,187.9,187.89,0.063]
[1739745488935,8.43007687,187.89,187.88,0.063]
[1739745489150,21.75854846,187.89,187.88,0.063]
[1739745490164,27.08074846,187.89,187.88,0.063]
[1739745490570,20.06667687,187.86,187.85,0.063]
[1739745490778,34.39526538,187.86,187.85,0.063]
[1739745491857,34.39526538,187.86,187.81,0.063]
[1739745492041,12.33013956,187.82,187.81,0.063]
[1739745492733,0.06667687,187.82,187.81,0.063]
[1739745492939,0.06667687,187.83,187.81,0.063]
[1739745493262,0.06667687,187.84,187.81,12.39313956]
[1739745493553,0.06667687,187.82,187.81,0.063]
[1739745494459,0.06667687,187.83,187.81,0.063]
[1739745494650,0.06667687,187.86,187.81,13.47484853]
[1739745494960,0.06667687,187.89,187.84,12.33013956]
[1739745495261,0.06667687,187.89,187.85,13.41184853]
[1739745495561,0.06667687,187.89,187.85,13.61184853]
[1739745496644,0.06667687,187.92,187.86,17.65323956]
[1739745496844,0.06667687,187.91,187.86,17.65323956]
[1739745497246,0.06667687,187.91,187.88,13.41184853]
[1739745497654,0.06667687,187.92,187.88,13.41184853]
[1739745497849,0.06667687,187.92,187.89,5.3222]
[1739745498764,0.06667687,187.91,187.89,5.3222]
[1739745500057,0.06667687,187.91,187.88,13.41184853]
[1739745500058,0.06667687,187.9,187.88,13.41184853]
[1739745500258,12.33013956,187.94,187.88,13.41184853]
[1739745500259,0.06667687,187.89,187.88,5.3225]
[1739745501447,0.06667687,187.88,187.87,0.2]
[1739745501646,0.06667687,187.87,187.86,18.73464853]
[1739745502554,0.06667687,187.86,187.85,81.5]
[1739745502956,0.06667687,187.86,187.85,81.0]
[1739745503765,0.06667687,187.84,187.83,18.73574853]
[1739745503973,0.06667687,187.84,187.82,12.33013956]
[1739745503974,0.06667687,187.83,187.82,5.3242]